[Event "*** Titled Tuesday Blitz"]
[Site "Chess.com"]
[Date "2021.03.02"]
[Round "11"]
[White "Cuajada_Zero"]
[Black "Romadk"]
[Result "1-0"]
[WhiteElo "2291"]
[BlackElo "2356"]
[TimeControl "180+1"]
[EndTime "12:09:04 PST"]
[Termination "Cuajada_Zero won by checkmate"]

1. d4 {[%clk 0:03:00.9]} 1... Nf6 {[%clk 0:02:57.1]} 2. Bg5 {[%clk 0:03:00.3]}
2... Ne4 {[%clk 0:02:56.2]} 3. Bf4 {[%clk 0:03:00.2]} 3... c5 {[%clk 0:02:56.6]}
4. f3 {[%clk 0:02:59.8]} 4... Qa5+ {[%clk 0:02:55]} 5. c3 {[%clk 0:02:59.5]}
5... Nf6 {[%clk 0:02:55.3]} 6. Nd2 {[%clk 0:02:58.1]} 6... Qb6 {[%clk
0:02:54.8]} 7. Nc4 {[%clk 0:02:43.4]} 7... Qe6 {[%clk 0:02:43.9]} 8. e3 {[%clk
0:02:18.8]} 8... Nd5 {[%clk 0:02:43.4]} 9. Bxb8 {[%clk 0:01:55.1]} 9... Nxe3
{[%clk 0:02:37.2]} 10. Nxe3 {[%clk 0:01:43.5]} 10... Qxe3+ {[%clk 0:02:38.1]}
11. Qe2 {[%clk 0:01:34.3]} 11... Qxe2+ {[%clk 0:02:37.9]} 12. Nxe2 {[%clk
0:01:30.3]} 12... Rxb8 {[%clk 0:02:38.8]} 13. dxc5 {[%clk 0:01:29.6]} 13... e6
{[%clk 0:02:33.1]} 14. b4 {[%clk 0:01:28.5]} 14... b6 {[%clk 0:02:33.4]} 15.
cxb6 {[%clk 0:01:26.6]} 15... Rxb6 {[%clk 0:02:34.3]} 16. Nd4 {[%clk 0:01:23.3]}
16... Bb7 {[%clk 0:02:26.3]} 17. Kd2 {[%clk 0:01:22.1]} 17... g6 {[%clk
0:02:20.7]} 18. a4 {[%clk 0:01:11.3]} 18... Bh6+ {[%clk 0:02:20]} 19. Kc2 {[%clk
0:01:07.4]} 19... Bd5 {[%clk 0:02:15.4]} 20. a5 {[%clk 0:01:05]} 20... Rb8
{[%clk 0:02:13.1]} 21. Ba6 {[%clk 0:01:01.5]} 21... Bg7 {[%clk 0:02:05]} 22.
Rhd1 {[%clk 0:01:00.7]} 22... Ke7 {[%clk 0:02:02.4]} 23. Rab1 {[%clk 0:00:54.2]}
23... f5 {[%clk 0:01:58.3]} 24. c4 {[%clk 0:00:50.4]} 24... Bxc4 {[%clk
0:01:49]} 25. Bxc4 {[%clk 0:00:49]} 25... Rhc8 {[%clk 0:01:49.8]} 26. Kb3 {[%clk
0:00:36.4]} 26... d5 {[%clk 0:01:49.9]} 27. Bf1 {[%clk 0:00:33.7]} 27... e5
{[%clk 0:01:48.9]} 28. Nb5 {[%clk 0:00:28.7]} 28... d4 {[%clk 0:01:48.6]} 29.
Rbc1 {[%clk 0:00:28.1]} 29... a6 {[%clk 0:01:44.5]} 30. Na7 {[%clk 0:00:26.4]}
30... Rxc1 {[%clk 0:01:35.3]} 31. Rxc1 {[%clk 0:00:27.3]} 31... Rb7 {[%clk
0:01:35.2]} 32. Nc6+ {[%clk 0:00:24.1]} 32... Kf6 {[%clk 0:01:33.1]} 33. Bxa6
{[%clk 0:00:24.5]} 33... Rc7 {[%clk 0:01:31.9]} 34. b5 {[%clk 0:00:24.2]} 34...
d3 {[%clk 0:01:32.1]} 35. b6 {[%clk 0:00:13.8]} 35... d2 {[%clk 0:01:32.2]} 36.
Rd1 {[%clk 0:00:14.1]} 36... Rxc6 {[%clk 0:01:31.4]} 37. b7 {[%clk 0:00:14.6]}
37... Rc1 {[%clk 0:01:27.5]} 38. Rxd2 {[%clk 0:00:13.7]} 38... e4 {[%clk
0:01:21]} 39. b8=Q {[%clk 0:00:11.9]} 39... Kg5 {[%clk 0:01:21.2]} 40. Qd8+
{[%clk 0:00:10.7]} 40... Bf6 {[%clk 0:01:20.5]} 41. Qd5 {[%clk 0:00:09.6]} 41...
Rb1+ {[%clk 0:01:17.2]} 42. Kc2 {[%clk 0:00:09.3]} 42... Rb2+ {[%clk 0:01:16.8]}
43. Kc1 {[%clk 0:00:09.8]} 43... Rb4 {[%clk 0:01:08.5]} 44. fxe4 {[%clk
0:00:09.7]} 44... Rxe4 {[%clk 0:01:09.4]} 45. Bd3 {[%clk 0:00:08.9]} 45... Re1+
{[%clk 0:01:07.9]} 46. Kc2 {[%clk 0:00:08.7]} 46... Re5 {[%clk 0:01:08.8]} 47.
Qxe5 {[%clk 0:00:08.3]} 47... Bxe5 {[%clk 0:01:08.7]} 48. a6 {[%clk 0:00:09.2]}
48... Bxh2 {[%clk 0:01:08.7]} 49. a7 {[%clk 0:00:09.3]} 49... Kh4 {[%clk
0:01:07.1]} 50. a8=Q {[%clk 0:00:09.3]} 50... f4 {[%clk 0:01:06.9]} 51. Bxg6
{[%clk 0:00:08.4]} 51... hxg6 {[%clk 0:01:06.3]} 52. Qf3 {[%clk 0:00:07.2]}
52... g5 {[%clk 0:01:06.1]} 53. Qh3# {[%clk 0:00:06.8]} 1-0

[Event "*** Titled Tuesday Blitz"]
[Site "Chess.com"]
[Date "2021.03.02"]
[Round "11"]
[White "Gabix_94"]
[Black "AlexPapasimakopoulos"]
[Result "0-1"]
[WhiteElo "2799"]
[BlackElo "2636"]
[TimeControl "180+1"]
[EndTime "12:09:05 PST"]
[Termination "AlexPapasimakopoulos won by checkmate"]

1. e4 {[%clk 0:03:00.9]} 1... e6 {[%clk 0:02:58.3]} 2. d4 {[%clk 0:03:00.4]}
2... d5 {[%clk 0:02:58.6]} 3. Bd3 {[%clk 0:02:59.9]} 3... c5 {[%clk 0:02:58.2]}
4. exd5 {[%clk 0:02:59.2]} 4... exd5 {[%clk 0:02:59.1]} 5. Nf3 {[%clk
0:02:59.5]} 5... Nf6 {[%clk 0:02:59.8]} 6. O-O {[%clk 0:02:59.2]} 6... Nc6
{[%clk 0:03:00.5]} 7. Re1+ {[%clk 0:02:58.4]} 7... Be7 {[%clk 0:03:01]} 8. dxc5
{[%clk 0:02:58.8]} 8... O-O {[%clk 0:03:01.8]} 9. Nc3 {[%clk 0:02:55.9]} 9...
Bxc5 {[%clk 0:03:00.6]} 10. Bg5 {[%clk 0:02:56.4]} 10... Be6 {[%clk 0:02:54.5]}
11. Bh4 {[%clk 0:02:51.3]} 11... h6 {[%clk 0:02:53]} 12. Ne2 {[%clk 0:02:43.6]}
12... g5 {[%clk 0:02:43.8]} 13. Bg3 {[%clk 0:02:30.2]} 13... Ne4 {[%clk
0:02:44]} 14. c4 {[%clk 0:02:15]} 14... Nxg3 {[%clk 0:02:36.1]} 15. Nxg3 {[%clk
0:02:04.8]} 15... dxc4 {[%clk 0:02:36.4]} 16. Bf5 {[%clk 0:02:04.7]} 16... Qxd1
{[%clk 0:02:35.8]} 17. Raxd1 {[%clk 0:02:05.6]} 17... Rad8 {[%clk 0:02:19]} 18.
Rc1 {[%clk 0:02:02]} 18... g4 {[%clk 0:02:11.6]} 19. Ne5 {[%clk 0:01:35.2]}
19... Rd2 {[%clk 0:02:05.2]} 20. Ne4 {[%clk 0:01:31]} 20... Bxf2+ {[%clk
0:02:05.1]} 21. Nxf2 {[%clk 0:01:28]} 21... Bxf5 {[%clk 0:02:04.7]} 22. Nxc4
{[%clk 0:01:28.5]} 22... Rd4 {[%clk 0:01:57.9]} 23. b3 {[%clk 0:01:24]} 23...
Rfd8 {[%clk 0:01:55]} 24. Ne3 {[%clk 0:01:23.6]} 24... Be6 {[%clk 0:01:53.5]}
25. Nh1 {[%clk 0:01:15.6]} 25... Rd2 {[%clk 0:01:48]} 26. Ng3 {[%clk 0:01:04.6]}
26... Nb4 {[%clk 0:01:18.9]} 27. Rf1 {[%clk 0:00:57.8]} 27... Rxa2 {[%clk
0:01:13.4]} 28. Ngf5 {[%clk 0:00:52]} 28... h5 {[%clk 0:01:11.5]} 29. Rc7 {[%clk
0:00:49.5]} 29... Rf8 {[%clk 0:00:34.1]} 30. Rxb7 {[%clk 0:00:43.7]} 30... Nc2
{[%clk 0:00:26.6]} 31. Ne7+ {[%clk 0:00:38]} 31... Kh7 {[%clk 0:00:23.7]} 32.
N3f5 {[%clk 0:00:35.6]} 32... a5 {[%clk 0:00:20.4]} 33. h3 {[%clk 0:00:27.3]}
33... gxh3 {[%clk 0:00:19.6]} 34. gxh3 {[%clk 0:00:27.8]} 34... Rd8 {[%clk
0:00:20]} 35. Nc6 {[%clk 0:00:21.2]} 35... Rd2 {[%clk 0:00:19.1]} 36. Ne5 {[%clk
0:00:20.2]} 36... Nd4 {[%clk 0:00:17.6]} 37. Nxd4 {[%clk 0:00:18.1]} 37... Rg2+
{[%clk 0:00:17.4]} 38. Kh1 {[%clk 0:00:18.5]} 38... Rh2+ {[%clk 0:00:18.3]} 39.
Kg1 {[%clk 0:00:18.3]} 39... Rag2# {[%clk 0:00:19.2]} 0-1

[Event "*** Titled Tuesday Blitz"]
[Site "Chess.com"]
[Date "2021.03.02"]
[Round "11"]
[White "Abund"]
[Black "zmeeed67"]
[Result "1-0"]
[WhiteElo "2644"]
[BlackElo "2429"]
[TimeControl "180+1"]
[EndTime "12:09:05 PST"]
[Termination "Abund won on time"]

1. e4 {[%clk 0:03:00.9]} 1... c5 {[%clk 0:02:53.6]} 2. Nf3 {[%clk 0:03:00.8]}
2... Nf6 {[%clk 0:02:53.4]} 3. e5 {[%clk 0:03:00.7]} 3... Nd5 {[%clk 0:02:53.8]}
4. Nc3 {[%clk 0:03:01.2]} 4... Nxc3 {[%clk 0:02:54]} 5. dxc3 {[%clk 0:03:02.1]}
5... Nc6 {[%clk 0:02:54.7]} 6. Bf4 {[%clk 0:02:52.5]} 6... h6 {[%clk 0:02:54.2]}
7. h4 {[%clk 0:02:51.7]} 7... e6 {[%clk 0:02:54.2]} 8. Qd2 {[%clk 0:02:49.7]}
8... b6 {[%clk 0:02:53.6]} 9. O-O-O {[%clk 0:02:45.9]} 9... Bb7 {[%clk
0:02:53.9]} 10. Bd3 {[%clk 0:02:42.7]} 10... Qc7 {[%clk 0:02:47.4]} 11. Qe2
{[%clk 0:02:34.2]} 11... O-O-O {[%clk 0:02:46.3]} 12. Be4 {[%clk 0:02:30]} 12...
d5 {[%clk 0:02:42.1]} 13. exd6 {[%clk 0:02:27]} 13... Bxd6 {[%clk 0:02:42.1]}
14. Bxd6 {[%clk 0:02:22.7]} 14... Rxd6 {[%clk 0:02:43]} 15. Bxc6 {[%clk
0:01:59.8]} 15... Bxc6 {[%clk 0:02:25.9]} 16. Ne5 {[%clk 0:01:49.7]} 16... Rhd8
{[%clk 0:02:01.3]} 17. Rxd6 {[%clk 0:01:45.1]} 17... Rxd6 {[%clk 0:01:52.6]} 18.
f3 {[%clk 0:01:35.6]} 18... Bb7 {[%clk 0:01:39.2]} 19. b3 {[%clk 0:01:33]} 19...
Rd5 {[%clk 0:01:28.4]} 20. Re1 {[%clk 0:01:30.9]} 20... f6 {[%clk 0:01:02]} 21.
Nc4 {[%clk 0:01:06.5]} 21... e5 {[%clk 0:01:01.3]} 22. Ne3 {[%clk 0:01:05.7]}
22... Rd8 {[%clk 0:00:47.3]} 23. Qc4 {[%clk 0:01:00.2]} 23... h5 {[%clk
0:00:08.9]} 24. a4 {[%clk 0:00:52.3]} 24... Bc6 {[%clk 0:00:07.2]} 25. a5 {[%clk
0:00:44.9]} 25... Kb7 {[%clk 0:00:05.9]} 26. Kb2 {[%clk 0:00:42.7]} 26... g6
{[%clk 0:00:02.4]} 27. Ra1 {[%clk 0:00:40.8]} 27... Qe7 {[%clk 0:00:02]} 28.
axb6 {[%clk 0:00:40.4]} 28... axb6 {[%clk 0:00:01.8]} 29. Qa6+ {[%clk
0:00:40.2]} 29... Kc7 {[%clk 0:00:02.4]} 30. Nc4 {[%clk 0:00:40.1]} 30... Rb8
{[%clk 0:00:01.5]} 31. Rd1 {[%clk 0:00:28.8]} 31... f5 {[%clk 0:00:01.1]} 32.
Re1 {[%clk 0:00:24.8]} 1-0

[Event "*** Titled Tuesday Blitz"]
[Site "Chess.com"]
[Date "2021.03.02"]
[Round "11"]
[White "Artem_Koval"]
[Black "AntonovaNadezhda"]
[Result "0-1"]
[WhiteElo "2211"]
[BlackElo "2137"]
[TimeControl "180+1"]
[EndTime "12:09:07 PST"]
[Termination "AntonovaNadezhda won by checkmate"]

1. d4 {[%clk 0:03:00.9]} 1... Nf6 {[%clk 0:02:58.3]} 2. Bf4 {[%clk 0:03:00]}
2... g6 {[%clk 0:02:57.5]} 3. e3 {[%clk 0:02:59.8]} 3... Bg7 {[%clk 0:02:57.6]}
4. Nc3 {[%clk 0:03:00.3]} 4... O-O {[%clk 0:02:57]} 5. Nf3 {[%clk 0:03:00.5]}
5... d6 {[%clk 0:02:56.7]} 6. Be2 {[%clk 0:02:53.1]} 6... b6 {[%clk 0:02:56.5]}
7. h4 {[%clk 0:02:45.1]} 7... h5 {[%clk 0:02:53.5]} 8. Ng5 {[%clk 0:02:42.1]}
8... Bb7 {[%clk 0:02:48.7]} 9. Bf3 {[%clk 0:02:37.9]} 9... Bxf3 {[%clk
0:02:44.7]} 10. Qxf3 {[%clk 0:02:38.8]} 10... Nbd7 {[%clk 0:02:44.4]} 11. Bh2
{[%clk 0:02:15.5]} 11... c5 {[%clk 0:02:41]} 12. O-O-O {[%clk 0:02:14.3]} 12...
cxd4 {[%clk 0:02:39.9]} 13. exd4 {[%clk 0:02:15.2]} 13... Rc8 {[%clk 0:02:33.9]}
14. Rhe1 {[%clk 0:02:15.1]} 14... Ng4 {[%clk 0:02:24.6]} 15. Bg3 {[%clk
0:02:11.8]} 15... Ndf6 {[%clk 0:02:16.9]} 16. Qd3 {[%clk 0:02:06.3]} 16... e6
{[%clk 0:02:12.2]} 17. f3 {[%clk 0:02:04.3]} 17... Nh6 {[%clk 0:02:11.8]} 18.
Bf2 {[%clk 0:01:47]} 18... Qc7 {[%clk 0:01:52.8]} 19. Kb1 {[%clk 0:01:28.1]}
19... d5 {[%clk 0:01:47.7]} 20. Be3 {[%clk 0:01:11.3]} 20... Nf5 {[%clk
0:01:40]} 21. g4 {[%clk 0:01:00.7]} 21... hxg4 {[%clk 0:01:35.9]} 22. fxg4
{[%clk 0:01:01.6]} 22... Nxg4 {[%clk 0:01:30.9]} 23. h5 {[%clk 0:00:59.7]} 23...
Ngxe3 {[%clk 0:01:20.7]} 24. Rxe3 {[%clk 0:00:50.1]} 24... Nxe3 {[%clk 0:01:20]}
25. Qxe3 {[%clk 0:00:51]} 25... gxh5 {[%clk 0:00:56.6]} 26. Qd3 {[%clk
0:00:39.2]} 26... Rfe8 {[%clk 0:00:46]} 27. Qh7+ {[%clk 0:00:35.6]} 27... Kf8
{[%clk 0:00:46.1]} 28. Rf1 {[%clk 0:00:34.7]} 28... f5 {[%clk 0:00:39.5]} 29.
Qxh5 {[%clk 0:00:13]} 29... Bxd4 {[%clk 0:00:38]} 30. Nh7+ {[%clk 0:00:08.8]}
30... Ke7 {[%clk 0:00:36.6]} 31. Re1 {[%clk 0:00:07.7]} 31... Bxc3 {[%clk
0:00:30.6]} 32. Qg5+ {[%clk 0:00:07.7]} 32... Kd6 {[%clk 0:00:28.4]} 33. Qg3+
{[%clk 0:00:06.9]} 33... Kc6 {[%clk 0:00:24.6]} 34. Qxc3+ {[%clk 0:00:06.4]}
34... Kb7 {[%clk 0:00:24.5]} 35. Qh3 {[%clk 0:00:06.7]} 35... Qxc2+ {[%clk
0:00:23.5]} 36. Ka1 {[%clk 0:00:05.9]} 36... Qc1+ {[%clk 0:00:23.2]} 37. Rxc1
{[%clk 0:00:06.8]} 37... Rxc1# {[%clk 0:00:22.8]} 0-1

[Event "*** Titled Tuesday Blitz"]
[Site "Chess.com"]
[Date "2021.03.02"]
[Round "11"]
[White "Sven_Tica"]
[Black "bratkoo"]
[Result "1-0"]
[WhiteElo "2672"]
[BlackElo "2520"]
[TimeControl "180+1"]
[EndTime "12:09:13 PST"]
[Termination "Sven_Tica won by resignation"]

1. d4 {[%clk 0:03:00.9]} 1... e6 {[%clk 0:02:59.6]} 2. c4 {[%clk 0:03:01.3]}
2... d5 {[%clk 0:02:59.8]} 3. g3 {[%clk 0:03:01.9]} 3... Nf6 {[%clk 0:02:58.8]}
4. Bg2 {[%clk 0:03:02.4]} 4... Be7 {[%clk 0:02:58.3]} 5. Nf3 {[%clk 0:03:01.9]}
5... O-O {[%clk 0:02:58.5]} 6. Nc3 {[%clk 0:03:02.5]} 6... c6 {[%clk 0:02:58]}
7. O-O {[%clk 0:03:02.3]} 7... b6 {[%clk 0:02:57.4]} 8. Ne5 {[%clk 0:02:59.1]}
8... Bb7 {[%clk 0:02:56.6]} 9. e4 {[%clk 0:02:59.2]} 9... Nbd7 {[%clk
0:02:53.2]} 10. Nxc6 {[%clk 0:02:59]} 10... Bxc6 {[%clk 0:02:52.4]} 11. exd5
{[%clk 0:02:58.7]} 11... exd5 {[%clk 0:02:52.3]} 12. cxd5 {[%clk 0:02:59]} 12...
Bb7 {[%clk 0:02:43.9]} 13. d6 {[%clk 0:02:59.2]} 13... Bxg2 {[%clk 0:02:44]} 14.
dxe7 {[%clk 0:02:59.5]} 14... Qxe7 {[%clk 0:02:44.9]} 15. Kxg2 {[%clk
0:03:00.1]} 15... Rfd8 {[%clk 0:02:35.6]} 16. Re1 {[%clk 0:02:54]} 16... Qb4
{[%clk 0:02:34]} 17. a3 {[%clk 0:02:48.7]} 17... Qc4 {[%clk 0:02:33.8]} 18. Be3
{[%clk 0:02:39.7]} 18... Nf8 {[%clk 0:02:32.1]} 19. Rc1 {[%clk 0:02:37.1]} 19...
Rac8 {[%clk 0:02:31.4]} 20. Qf3 {[%clk 0:02:34.9]} 20... Qb3 {[%clk 0:01:52.4]}
21. Bg5 {[%clk 0:02:06.8]} 21... Rd6 {[%clk 0:01:46.1]} 22. d5 {[%clk
0:01:43.5]} 22... Qxb2 {[%clk 0:00:59.8]} 23. Na4 {[%clk 0:01:21.7]} 23... Rxc1
{[%clk 0:00:51.2]} 24. Nxb2 {[%clk 0:01:20]} 24... Rxe1 {[%clk 0:00:50.8]} 25.
Nc4 {[%clk 0:01:20.6]} 25... Rxd5 {[%clk 0:00:26.3]} 26. Bxf6 {[%clk 0:01:20.1]}
26... Rc5 {[%clk 0:00:25.5]} 27. Nb2 {[%clk 0:00:53.7]} 27... Re8 {[%clk
0:00:13.8]} 28. Nd3 {[%clk 0:00:49.5]} 28... Ra5 {[%clk 0:00:13.9]} 29. Bb2
{[%clk 0:00:49]} 29... Ne6 {[%clk 0:00:14.1]} 30. Ne5 {[%clk 0:00:48.7]} 30...
f6 {[%clk 0:00:11.4]} 31. Qc6 {[%clk 0:00:46.9]} 31... Re7 {[%clk 0:00:11.7]}
32. Qc8+ {[%clk 0:00:45.9]} 32... Nf8 {[%clk 0:00:12]} 33. Qc4+ {[%clk
0:00:45.9]} 33... Re6 {[%clk 0:00:12.4]} 34. Nd3 {[%clk 0:00:42.4]} 34... Kf7
{[%clk 0:00:11.4]} 35. Nf4 {[%clk 0:00:42.4]} 35... Rc5 {[%clk 0:00:10.4]} 36.
Qb3 {[%clk 0:00:42.4]} 36... g5 {[%clk 0:00:10]} 37. Nxe6 {[%clk 0:00:42.5]}
37... Nxe6 {[%clk 0:00:10.9]} 38. Qd3 {[%clk 0:00:42.4]} 38... Nf8 {[%clk
0:00:06.3]} 39. Qd4 {[%clk 0:00:41.3]} 39... Rc6 {[%clk 0:00:06.5]} 40. Qd5+
{[%clk 0:00:40.7]} 40... Re6 {[%clk 0:00:07.1]} 41. a4 {[%clk 0:00:39.5]} 41...
Ke7 {[%clk 0:00:07.5]} 42. Qb7+ {[%clk 0:00:38.4]} 42... Nd7 {[%clk 0:00:08]}
43. Ba3+ {[%clk 0:00:38.2]} 43... Ke8 {[%clk 0:00:07.2]} 44. Qc8+ {[%clk
0:00:38]} 1-0

[Event "*** Titled Tuesday Blitz"]
[Site "Chess.com"]
[Date "2021.03.02"]
[Round "11"]
[White "Atco84"]
[Black "Walter_White_Poland"]
[Result "1/2-1/2"]
[WhiteElo "2399"]
[BlackElo "2291"]
[TimeControl "180+1"]
[EndTime "12:09:13 PST"]
[Termination "Game drawn by repetition"]

1. b3 {[%clk 0:03:00.9]} 1... e5 {[%clk 0:02:59.5]} 2. Bb2 {[%clk 0:02:55.6]}
2... Nc6 {[%clk 0:02:59.2]} 3. Nf3 {[%clk 0:02:55.7]} 3... e4 {[%clk 0:02:57.8]}
4. Nd4 {[%clk 0:02:55.4]} 4... Nxd4 {[%clk 0:02:57.1]} 5. Bxd4 {[%clk
0:02:54.6]} 5... c5 {[%clk 0:02:57.1]} 6. Bb2 {[%clk 0:02:53.6]} 6... d5 {[%clk
0:02:57.3]} 7. e3 {[%clk 0:02:52.5]} 7... Nf6 {[%clk 0:02:56.5]} 8. d3 {[%clk
0:02:48.8]} 8... Be7 {[%clk 0:02:53.6]} 9. Be2 {[%clk 0:02:42.9]} 9... exd3
{[%clk 0:02:51.1]} 10. cxd3 {[%clk 0:02:38.9]} 10... O-O {[%clk 0:02:50.8]} 11.
Nd2 {[%clk 0:02:38.3]} 11... b6 {[%clk 0:02:50.1]} 12. O-O {[%clk 0:02:37.7]}
12... Bb7 {[%clk 0:02:49.6]} 13. Nf3 {[%clk 0:02:35.8]} 13... Qd7 {[%clk
0:02:47.2]} 14. d4 {[%clk 0:02:09.1]} 14... h6 {[%clk 0:02:40.1]} 15. Rc1 {[%clk
0:01:59.4]} 15... Rac8 {[%clk 0:02:39.9]} 16. Ne5 {[%clk 0:01:58.7]} 16... Qe6
{[%clk 0:02:38.1]} 17. Bd3 {[%clk 0:01:46.8]} 17... Nd7 {[%clk 0:02:16.9]} 18.
Bb1 {[%clk 0:01:38]} 18... Nxe5 {[%clk 0:02:15.7]} 19. dxe5 {[%clk 0:01:34.5]}
19... g6 {[%clk 0:02:02.6]} 20. f4 {[%clk 0:01:19.3]} 20... f5 {[%clk
0:01:49.9]} 21. exf6 {[%clk 0:01:09.7]} 21... Bxf6 {[%clk 0:01:49.8]} 22. Bxf6
{[%clk 0:01:07.4]} 22... Qxe3+ {[%clk 0:01:36.1]} 23. Kh1 {[%clk 0:01:07.5]}
23... Rxf6 {[%clk 0:01:36.1]} 24. Qg4 {[%clk 0:01:07.2]} 24... Rcf8 {[%clk
0:01:08]} 25. Rce1 {[%clk 0:00:54.1]} 25... Qd4 {[%clk 0:00:09.9]} 26. g3 {[%clk
0:00:45.5]} 26... Bc8 {[%clk 0:00:08.8]} 27. Qh4 {[%clk 0:00:29.3]} 27... Kg7
{[%clk 0:00:08.8]} 28. Re7+ {[%clk 0:00:26.1]} 28... R8f7 {[%clk 0:00:09.1]} 29.
Rxf7+ {[%clk 0:00:25.5]} 29... Rxf7 {[%clk 0:00:10]} 30. Qd8 {[%clk 0:00:22.4]}
30... Bf5 {[%clk 0:00:09.7]} 31. Bxf5 {[%clk 0:00:21.9]} 31... gxf5 {[%clk
0:00:10]} 32. Re1 {[%clk 0:00:22.3]} 32... Qf2 {[%clk 0:00:09.5]} 33. Qe8 {[%clk
0:00:19.8]} 33... d4 {[%clk 0:00:08.8]} 34. Qe5+ {[%clk 0:00:18.4]} 34... Kg6
{[%clk 0:00:09.1]} 35. Qe6+ {[%clk 0:00:17.2]} 35... Kg7 {[%clk 0:00:09.3]} 36.
Qe5+ {[%clk 0:00:17.1]} 36... Kg6 {[%clk 0:00:09.7]} 37. Qe6+ {[%clk 0:00:17.1]}
37... Kg7 {[%clk 0:00:10]} 38. Qe5+ {[%clk 0:00:17.6]} 1/2-1/2

[Event "*** Titled Tuesday Blitz"]
[Site "Chess.com"]
[Date "2021.03.02"]
[Round "11"]
[White "rachidhuilda"]
[Black "SimplyDevina"]
[Result "0-1"]
[WhiteElo "2267"]
[BlackElo "2183"]
[TimeControl "180+1"]
[EndTime "12:09:17 PST"]
[Termination "SimplyDevina won on time"]

1. d4 {[%clk 0:02:59.7]} 1... d5 {[%clk 0:02:56.4]} 2. Nf3 {[%clk 0:02:56.1]}
2... e6 {[%clk 0:02:52.2]} 3. Bf4 {[%clk 0:02:53.3]} 3... Nf6 {[%clk 0:02:51]}
4. e3 {[%clk 0:02:52.5]} 4... Bd6 {[%clk 0:02:51.5]} 5. Bg3 {[%clk 0:02:51.2]}
5... Nbd7 {[%clk 0:02:50.4]} 6. Nbd2 {[%clk 0:02:41.1]} 6... Qe7 {[%clk
0:02:49.7]} 7. Ne5 {[%clk 0:02:37.3]} 7... O-O {[%clk 0:02:44.1]} 8. f4 {[%clk
0:02:32.5]} 8... c5 {[%clk 0:02:35.9]} 9. c3 {[%clk 0:02:32.5]} 9... Ne4 {[%clk
0:02:03.1]} 10. Nxe4 {[%clk 0:02:25.3]} 10... dxe4 {[%clk 0:02:04]} 11. Be2
{[%clk 0:02:12.1]} 11... f6 {[%clk 0:01:52.6]} 12. Nc4 {[%clk 0:02:05.3]} 12...
Bc7 {[%clk 0:01:43.8]} 13. a4 {[%clk 0:01:58.8]} 13... b6 {[%clk 0:01:33.8]} 14.
O-O {[%clk 0:01:57]} 14... Bb7 {[%clk 0:01:34.3]} 15. a5 {[%clk 0:01:15.3]}
15... b5 {[%clk 0:00:55]} 16. a6 {[%clk 0:01:14.8]} 16... Bd5 {[%clk 0:00:45.4]}
17. Nd2 {[%clk 0:01:13.4]} 17... Rab8 {[%clk 0:00:41.5]} 18. Bh4 {[%clk
0:01:00.2]} 18... cxd4 {[%clk 0:00:40.6]} 19. cxd4 {[%clk 0:00:58.5]} 19... Rfc8
{[%clk 0:00:26.5]} 20. Qb1 {[%clk 0:00:53.6]} 20... g5 {[%clk 0:00:13.4]} 21.
fxg5 {[%clk 0:00:53.1]} 21... fxg5 {[%clk 0:00:14.3]} 22. Bf2 {[%clk 0:00:32.8]}
22... Nf6 {[%clk 0:00:14.6]} 23. h3 {[%clk 0:00:20]} 23... Qd6 {[%clk
0:00:11.5]} 24. g3 {[%clk 0:00:18.8]} 24... e5 {[%clk 0:00:08.4]} 25. dxe5
{[%clk 0:00:16.3]} 25... Qxe5 {[%clk 0:00:09.3]} 26. Kg2 {[%clk 0:00:16.6]}
26... h5 {[%clk 0:00:08.1]} 27. Rh1 {[%clk 0:00:08.1]} 27... h4 {[%clk 0:00:08]}
28. Rf1 {[%clk 0:00:05.9]} 28... hxg3 {[%clk 0:00:07.4]} 29. Be1 {[%clk
0:00:06.8]} 29... Rf8 {[%clk 0:00:06.3]} 30. b4 {[%clk 0:00:04.3]} 30... Rf7
{[%clk 0:00:04.8]} 31. Nb3 {[%clk 0:00:04.1]} 31... Rh7 {[%clk 0:00:03.9]} 32.
Nd4 {[%clk 0:00:03.5]} 32... Qd6 {[%clk 0:00:02.7]} 33. Nf5 {[%clk 0:00:02.6]}
33... Qd7 {[%clk 0:00:02.7]} 0-1

[Event "*** Titled Tuesday Blitz"]
[Site "Chess.com"]
[Date "2021.03.02"]
[Round "11"]
[White "klimkoj"]
[Black "bakki78"]
[Result "0-1"]
[WhiteElo "2612"]
[BlackElo "2788"]
[TimeControl "180+1"]
[EndTime "12:09:20 PST"]
[Termination "bakki78 won by resignation"]

1. d4 {[%clk 0:03:00.9]} 1... d6 {[%clk 0:02:59.2]} 2. e4 {[%clk 0:03:00.5]}
2... Nf6 {[%clk 0:02:58.2]} 3. Nc3 {[%clk 0:03:00.9]} 3... e5 {[%clk 0:02:58.3]}
4. Nf3 {[%clk 0:03:00.5]} 4... Nbd7 {[%clk 0:02:57.8]} 5. Rg1 {[%clk 0:03:00.8]}
5... c6 {[%clk 0:02:55.5]} 6. g4 {[%clk 0:03:00.8]} 6... d5 {[%clk 0:02:54.1]}
7. exd5 {[%clk 0:02:56]} 7... exd4 {[%clk 0:02:49]} 8. Nxd4 {[%clk 0:02:47.3]}
8... Nxd5 {[%clk 0:02:46.7]} 9. Nxd5 {[%clk 0:02:45.9]} 9... cxd5 {[%clk
0:02:46.7]} 10. Qe2+ {[%clk 0:02:46.1]} 10... Be7 {[%clk 0:02:38.1]} 11. Nf5
{[%clk 0:02:45]} 11... g6 {[%clk 0:02:31.6]} 12. Nxe7 {[%clk 0:01:54.8]} 12...
Qxe7 {[%clk 0:02:30.9]} 13. Be3 {[%clk 0:01:54.3]} 13... O-O {[%clk 0:02:22.3]}
14. O-O-O {[%clk 0:01:53.9]} 14... Nf6 {[%clk 0:02:15.6]} 15. Bd4 {[%clk
0:01:45.9]} 15... Qxe2 {[%clk 0:02:03.1]} 16. Bxe2 {[%clk 0:01:46.8]} 16... Ne4
{[%clk 0:02:03.4]} 17. f3 {[%clk 0:01:46.4]} 17... Ng5 {[%clk 0:02:01.4]} 18.
Bb5 {[%clk 0:01:35.6]} 18... Nxf3 {[%clk 0:01:59.4]} 19. Rg3 {[%clk 0:01:34.8]}
19... Nxd4 {[%clk 0:01:57.6]} 20. Rxd4 {[%clk 0:01:35.7]} 20... Be6 {[%clk
0:01:56.7]} 21. Ba4 {[%clk 0:01:33.3]} 21... Rac8 {[%clk 0:01:54.3]} 22. Bb3
{[%clk 0:01:33]} 22... Rc5 {[%clk 0:01:54.1]} 23. Rgd3 {[%clk 0:01:31.3]} 23...
Rd8 {[%clk 0:01:52]} 24. g5 {[%clk 0:01:30.2]} 24... Kg7 {[%clk 0:01:49.2]} 25.
h4 {[%clk 0:01:29.5]} 25... h6 {[%clk 0:01:49.4]} 26. Kd2 {[%clk 0:01:26.1]}
26... hxg5 {[%clk 0:01:47.2]} 27. hxg5 {[%clk 0:01:27]} 27... Rh8 {[%clk
0:01:47]} 28. Re3 {[%clk 0:01:14.5]} 28... Rh5 {[%clk 0:01:43.1]} 29. Rg3 {[%clk
0:01:13.7]} 29... Rh2+ {[%clk 0:01:41.5]} 30. Kc1 {[%clk 0:01:11.3]} 30... Bf5
{[%clk 0:01:40]} 31. Rc3 {[%clk 0:01:02.6]} 31... Rxc3 {[%clk 0:00:47.8]} 32.
bxc3 {[%clk 0:01:03.5]} 32... Rg2 {[%clk 0:00:47]} 33. Rxd5 {[%clk 0:01:03]}
33... Rxg5 {[%clk 0:00:45.8]} 34. Rc5 {[%clk 0:00:54.8]} 34... Rg1+ {[%clk
0:00:44]} 35. Kb2 {[%clk 0:00:54.6]} 35... Rf1 {[%clk 0:00:44.4]} 36. Rc7 {[%clk
0:00:53.8]} 36... Be4 {[%clk 0:00:44.3]} 37. a3 {[%clk 0:00:48.8]} 37... g5
{[%clk 0:00:43.3]} 38. Re7 {[%clk 0:00:45.1]} 38... Bc6 {[%clk 0:00:41.3]} 39.
a4 {[%clk 0:00:44.6]} 39... g4 {[%clk 0:00:39.9]} 40. Re3 {[%clk 0:00:37.1]}
40... f5 {[%clk 0:00:38.7]} 41. a5 {[%clk 0:00:27.5]} 41... a6 {[%clk 0:00:38]}
42. Be6 {[%clk 0:00:25.9]} 42... f4 {[%clk 0:00:33.7]} 43. Rd3 {[%clk
0:00:24.7]} 43... g3 {[%clk 0:00:31.8]} 44. Bh3 {[%clk 0:00:23.4]} 44... g2
{[%clk 0:00:29]} 45. Bxg2 {[%clk 0:00:20.3]} 45... Bxg2 {[%clk 0:00:28.4]} 46.
c4 {[%clk 0:00:21.2]} 46... Bc6 {[%clk 0:00:27.6]} 47. c5 {[%clk 0:00:20.4]}
47... f3 {[%clk 0:00:26.7]} 0-1